bitfinex-derivatives/quotes_BTCF0:USTF0_20250211
["timestamp","ask_amount","ask_price","bid_price","bid_amount"]
[1739236658377,0.2042015,97928.0,97918.0,0.18266853]
[1739236658768,0.2042015,97928.0,97918.0,0.2042205]
[1739236659272,0.2042015,97928.0,97922.0,0.015]
[1739236660661,0.2042015,97928.0,97922.0,0.022]
[1739236661977,0.21561879,97928.0,97922.0,0.022]
[1739236662179,0.21661879,97928.0,97922.0,0.007]
[1739236662973,0.21661879,97928.0,97922.0,0.022]
[1739236666974,0.2042042,97927.0,97922.0,0.022]
[1739236667683,0.20421,97924.0,97922.0,0.022]
[1739236668084,0.20421,97924.0,97922.0,0.007]
[1739236668276,0.20421,97924.0,97922.0,0.022]
[1739236669084,0.20521,97924.0,97922.0,0.022]
[1739236671180,0.001,97924.0,97922.0,0.022]
[1739236671381,0.001,97924.0,97922.0,0.2262119]
[1739236672092,0.001,97924.0,97923.0,0.393]
[1739236672288,0.0794,97936.0,97923.0,0.393]
[1739236672289,0.0794,97936.0,97932.0,0.2041925]
[1739236672493,0.01165778,97935.0,97932.0,0.5649925]
[1739236673178,0.00015314,97933.0,97932.0,0.5649925]
[1739236674085,0.00015314,97933.0,97932.0,0.5699925]
[1739236674986,0.00015314,97933.0,97932.0,0.58128916]
[1739236675194,0.00115314,97933.0,97932.0,0.59528916]
[1739236677789,0.2041259,97964.0,97932.0,0.39109666]
[1739236677994,0.07936,97963.0,97952.0,0.3608]
[1739236678296,0.2041299,97962.0,97953.0,0.0921]
[1739236678493,0.2041299,97962.0,97960.0,0.2041325]
[1739236679597,0.001,97963.0,97962.0,0.2041299]
[1739236679785,0.32430056,97964.0,97962.0,0.2041299]
[1739236680798,0.32830056,97964.0,97962.0,0.2041299]
[1739236680988,0.3608,97963.0,97955.0,0.2041435]
[1739236681703,0.3608,97963.0,97960.0,0.001]
[1739236681704,0.007,97962.0,97960.0,0.001]
[1739236682391,0.56844891,97963.0,97958.0,0.2041366]
[1739236682588,0.2091289,97963.0,97958.0,0.2041366]
[1739236682990,0.003,97962.0,97958.0,0.2041366]
[1739236683587,0.2101289,97963.0,97958.0,0.2041366]
[1739236683788,0.2101289,97963.0,97953.0,0.0606]
[1739236683789,0.23296341,97962.0,97960.0,0.2041332]
[1739236684194,0.23296341,97962.0,97960.0,0.2051332]
[1739236684195,0.23996341,97962.0,97960.0,0.2051332]
[1739236684591,0.23996341,97962.0,97961.0,0.0328]
[1739236685686,0.23296341,97962.0,97961.0,0.0328]
[1739236686002,0.24396341,97962.0,97961.0,0.0338]
[1739236686390,0.24496341,97962.0,97961.0,0.0338]
[1739236687294,0.012,97962.0,97961.0,0.0338]
[1739236688192,0.012,97962.0,97953.0,0.0606]
[1739236689303,0.006,97962.0,97953.0,0.0606]
[1739236689505,0.003,97962.0,97953.0,0.0606]
[1739236689801,0.2071313,97962.0,97956.0,0.204142]
[1739236689999,0.2071313,97962.0,97958.0,0.2041381]
[1739236690201,0.003,97962.0,97961.0,0.204132]
[1739236691404,0.005,97962.0,97961.0,0.204132]
[1739236691801,0.007,97962.0,97961.0,0.204132]
[1739236692203,0.011,97962.0,97961.0,0.205132]
[1739236692401,0.012,97962.0,97961.0,0.205132]
[1739236693504,0.012,97962.0,97961.0,0.001]
[1739236695109,0.01073849,97962.0,97961.0,0.001]
[1739236695606,0.01073849,97962.0,97951.0,0.00015314]
[1739236695905,0.08409483,97961.0,97951.0,0.00015314]
[1739236696502,0.2041463,97955.0,97952.0,0.2041496]
[1739236696697,0.2041322,97961.0,97957.0,0.2041396]
[1739236697501,0.2041322,97961.0,97958.0,0.0649]
[1739236698004,0.2051322,97961.0,97958.0,0.0649]
[1739236698406,0.2091322,97961.0,97958.0,0.2690369]
[1739236699006,0.2081322,97961.0,97958.0,0.2690369]
[1739236699207,0.2111322,97961.0,97958.0,0.2690369]
[1739236699904,0.2111322,97961.0,97959.0,0.2041355]
[1739236700402,0.2071322,97961.0,97959.0,0.2041355]
[1739236700602,0.2131322,97961.0,97959.0,0.2041355]
[1739236707604,0.2041488,97953.0,97951.0,0.00015314]
[1739236707904,1.7041488,97953.0,97951.0,0.00015314]
[1739236708100,0.3608,97958.0,97951.0,0.00015314]
[1739236708414,0.03,97960.0,97959.0,0.2041362]
[1739236708601,0.009,97961.0,97959.0,0.2041362]
[1739236708803,0.006,97961.0,97959.0,0.2041362]
[1739236709515,0.003,97960.0,97959.0,0.2041362]
[1739236710107,0.6441218,97966.0,97961.0,0.2041318]
[1739236710305,0.00052001,97966.0,97959.0,0.3608]
[1739236710507,0.00052001,97966.0,97965.0,0.2041237]
[1739236711106,0.18347176,97971.0,97959.0,0.3608]
[1739236711306,0.18347176,97971.0,97970.0,0.5649133]
[1739236712207,0.21499646,97984.0,97983.0,0.2040862]
[1739236713414,0.22799646,97984.0,97983.0,0.2050862]
[1739236713611,0.22799646,97984.0,97983.0,0.2369862]
[1739236714315,0.00015314,97993.0,97983.0,0.0329]
[1739236714516,0.00015314,97993.0,97990.0,0.5648716]
[1739236714813,0.2040314,98010.0,97990.0,0.3608]
[1739236715119,0.2372314,98010.0,97998.0,0.3608]
[1739236715311,0.24842281,98010.0,97998.0,0.3608]
[1739236715512,0.33251764,98010.0,97998.0,0.3608]
[1739236715715,0.24842281,98010.0,97998.0,0.3608]
[1739236716216,0.24842281,98010.0,98000.0,0.2040508]
[1739236716409,0.2040338,98009.0,97998.0,0.007]
[1739236716608,0.2040338,98009.0,97998.0,0.022]
[1739236717519,0.2040338,98009.0,98000.0,0.015]
[1739236718708,0.2040338,98009.0,98000.0,0.022]
[1739236718919,0.2040338,98009.0,98000.0,0.007]
[1739236720417,0.2040338,98009.0,98000.0,0.022]
[1739236720718,0.2040357,98008.0,98000.0,0.022]
[1739236720913,0.5648439,98004.0,98000.0,0.022]
[1739236721117,1.7040465,98003.0,98000.0,0.022]
[1739236721912,1.7040465,98003.0,98000.0,0.007]
[1739236722119,0.3608,98004.0,98000.0,0.022]
[1739236722319,0.3608,98004.0,98000.0,0.015]
[1739236722521,0.3608,98004.0,98000.0,0.022]
[1739236723524,0.12848624,98010.0,98000.0,0.022]
[1739236723822,0.2040426,98004.0,98000.0,0.022]
[1739236724817,0.2040459,98003.0,98000.0,0.015]
[1739236725015,0.5648459,98003.0,98000.0,0.007]
[1739236725218,0.2040478,98002.0,98000.0,0.007]
[1739236725421,0.2040478,98002.0,98000.0,0.022]
[1739236726432,0.2368478,98002.0,98000.0,0.022]
[1739236727024,0.2040478,98002.0,98000.0,0.022]
[1739236728727,0.2050478,98002.0,98000.0,0.016]
[1739236730122,0.0304,98001.0,98000.0,0.016]
[1739236732016,0.0304,98001.0,98000.0,0.007]
[1739236732327,0.0314,98001.0,98000.0,0.022]
[1739236734029,0.001,98001.0,98000.0,0.022]
[1739236735731,0.005,98001.0,98000.0,0.001]
[1739236735920,0.019,98001.0,98000.0,0.0346]
[1739236747026,0.019,98001.0,98000.0,0.002]
[1739236748328,0.00153083,98021.0,98000.0,0.6628]
[1739236748537,0.00153083,98021.0,98020.0,0.2040092]
[1739236755840,0.00153083,98021.0,98016.0,0.18266853]
[1739236755841,0.00015306,98030.0,98019.0,0.01145182]
[1739236756041,0.00015306,98030.0,98028.0,0.2039925]
[1739236759138,0.00015306,98030.0,98028.0,0.2049925]
[1739236760349,0.20414326,98030.0,98028.0,0.001]
[1739236760546,0.00015306,98030.0,98015.0,0.00015306]
[1739236760744,0.3608,98018.0,98015.0,0.00015306]
[1739236760939,0.0612,98017.0,98015.0,0.00015306]
[1739236761736,0.2040175,98016.0,98015.0,0.00015306]
[1739236761945,0.52373483,98016.0,97998.0,0.2040531]
[1739236762147,0.3608,98001.0,98000.0,0.2040508]
[1739236763050,0.204033,98009.0,98002.0,0.2040451]
[1739236763250,0.21521569,98009.0,98002.0,0.2040451]
[1739236763752,0.01118269,98009.0,98006.0,0.2040383]
[1739236763958,0.00015306,98010.0,98006.0,0.2040383]
[1739236764841,0.00015306,98010.0,98007.0,0.2040348]
[1739236765241,0.00015306,98010.0,98008.0,0.2040325]
[1739236766246,0.01146352,98010.0,98008.0,0.2040325]
[1739236766446,0.00015306,98010.0,98008.0,0.2040325]
[1739236767245,0.01109364,98010.0,98008.0,0.2040325]
[1739236769548,0.01109364,98010.0,97991.0,0.56502206]
[1739236769749,0.3608,98008.0,97991.0,0.56502206]
[1739236770246,0.2040377,98007.0,97991.0,0.56502206]
[1739236770453,0.3608,98008.0,97991.0,0.56502206]
[1739236771246,0.2040427,98004.0,97991.0,0.56502206]
[1739236771459,0.2040671,97993.0,97991.0,0.36095306]
[1739236771647,0.031,97992.0,97991.0,0.37295306]
[1739236771845,0.031,97992.0,97991.0,0.01615306]
[1739236772254,0.3918,97992.0,97991.0,0.01615306]
[1739236772952,0.3918,97992.0,97991.0,0.01215306]
[1739236773158,0.3918,97992.0,97991.0,0.01615306]
[1739236774450,0.40316884,97992.0,97991.0,0.01615306]
[1739236774753,0.40316884,97992.0,97991.0,0.01315306]
[1739236775447,0.40316884,97992.0,97991.0,0.00315306]
[1739236778252,0.40316884,97992.0,97991.0,0.00215306]
[1739236778457,0.2040925,97980.0,97979.0,0.00153083]
[1739236778649,0.5648925,97980.0,97979.0,0.00153083]
[1739236787171,0.57637856,97980.0,97979.0,0.00153083]
[1739236789576,0.37228606,97980.0,97979.0,0.00153083]
[1739236796274,0.40358606,97980.0,97979.0,0.00153083]
[1739236796482,0.40358606,97980.0,97970.0,0.00015306]
[1739236796483,0.2041112,97971.0,97970.0,0.00015306]
[1739236796691,0.5649112,97971.0,97970.0,0.00015306]
[1739236798588,0.5649112,97971.0,97970.0,0.00515306]
[1739236814797,0.56327795,97971.0,97970.0,0.00515306]
[1739236816201,0.20247795,97971.0,97970.0,0.00515306]
[1739236816401,0.56327795,97971.0,97970.0,0.00515306]
[1739236825508,0.3608,97971.0,97970.0,0.00515306]
[1739236827210,0.5649112,97971.0,97970.0,0.00515306]
[1739236849929,0.3608,97971.0,97970.0,0.00515306]
[1739236850342,0.3608,97971.0,97970.0,0.06615306]
[1739236854046,0.07848,97978.0,97973.0,0.2041071]
[1739236854645,0.07848,97978.0,97974.0,0.2041041]
[1739236854847,0.18308765,97979.0,97970.0,0.06615306]
[1739236855037,0.18308765,97979.0,97978.0,0.2040967]
[1739236856039,0.3608,97980.0,97978.0,0.2040967]
[1739236857046,0.3608,97980.0,97979.0,0.0308]
[1739236864841,0.01114879,97990.0,97979.0,0.0308]
[1739236865045,0.01114879,97990.0,97988.0,0.2040758]
[1739236870255,0.00153103,98000.0,97988.0,0.2040758]
[1739236870559,0.05516601,98020.0,97989.0,0.051018]
[1739236870759,0.05516601,98020.0,98013.0,0.2040229]
[1739236870760,0.0304,98019.0,98013.0,0.2040229]
[1739236871458,0.55493145,98015.0,98013.0,0.2040229]
[1739236873563,0.3608,98014.0,98013.0,0.2050229]
[1739236873765,0.3608,98014.0,98013.0,0.001]
[1739236873963,0.2040238,98013.0,97998.0,0.18311706]
[1739236874165,0.5648529,97999.0,97998.0,0.18311706]
[1739236874965,0.5648529,97999.0,97998.0,0.13321706]
[1739236875155,0.2040633,97994.0,97993.0,0.24461905]
[1739236875355,0.5648633,97994.0,97993.0,0.24461905]
[1739236877365,0.2040717,97990.0,97989.0,0.00015306]
[1739236878662,0.2040717,97990.0,97989.0,0.00115306]
[1739236884265,0.25370058,97990.0,97989.0,0.00115306]
[1739236885264,0.04962888,97990.0,97989.0,0.20522676]
[1739236887473,0.204068,97992.0,97989.0,0.20522676]
[1739236889175,0.2040704,97991.0,97989.0,0.00115306]
[1739236891667,0.37182107,97994.0,97989.0,0.00115306]
[1739236891867,0.37182107,97994.0,97993.0,0.2040654]
[1739236894180,0.37182107,97994.0,97993.0,0.2050654]
[1739236896371,0.57588447,97994.0,97993.0,0.001]
[1739236896571,0.93668447,97994.0,97993.0,0.001]
[1739236896772,0.73262107,97994.0,97973.0,0.24461905]
[1739236896973,0.204099,97977.0,97976.0,0.24461905]
[1739236897573,1.704099,97977.0,97976.0,0.24461905]
[1739236899282,0.204099,97977.0,97976.0,0.24461905]
[1739236900377,0.204099,97977.0,97974.0,0.2041032]
[1739236901080,0.21467592,97977.0,97974.0,0.2041032]
[1739236901985,0.01057692,97977.0,97975.0,0.2041023]
[1739236902283,0.3608,97979.0,97975.0,0.2041023]
[1739236903079,0.3715819,97979.0,97975.0,0.2041023]
[1739236905687,0.3715819,97979.0,97977.0,0.2040974]
[1739236908191,0.0107819,97979.0,97977.0,0.2040974]
[1739236908378,0.0782,97982.0,97977.0,0.2040974]
[1739236908379,0.3608,97978.0,97977.0,0.2040974]
[1739236911577,0.01105758,97982.0,97981.0,0.2040904]
[1739236911788,0.00015306,97986.0,97967.0,0.00015306]
[1739236911982,0.00015306,97986.0,97984.0,0.2040832]
[1739236912677,0.01090372,97986.0,97984.0,0.2040832]
[1739236920986,1.5,97985.0,97984.0,0.2040832]
[1739236921500,0.01090372,97986.0,97984.0,0.2040832]
[1739236927593,0.01090372,97986.0,97985.0,0.01233685]
[1739236928594,0.00015306,97986.0,97985.0,0.01233685]
[1739236928793,0.18308765,97992.0,97985.0,0.01233685]
[1739236928794,0.18308765,97992.0,97991.0,0.2040696]
[1739236929007,0.18308765,97992.0,97991.0,0.21640645]
[1739236929496,0.18308765,97992.0,97991.0,0.23623666]
[1739236929696,0.01047716,97996.0,97991.0,0.03216706]
[1739236929891,0.00015306,98001.0,97992.0,0.01233685]
[1739236930091,0.00015306,98001.0,98000.0,0.2040509]
[1739236931494,0.00015306,98001.0,98000.0,0.2050509]
[1739236932995,0.00015306,98001.0,98000.0,0.2060509]
[1739236937097,0.23286184,98001.0,98000.0,0.2060509]
[1739236939703,0.04977419,98001.0,98000.0,0.2060509]
[1739236947504,0.00015306,98001.0,98000.0,0.2060509]
[1739236952316,0.00015306,98001.0,98000.0,0.21849429]
[1739236954215,0.00015306,98001.0,98000.0,0.21847534]
[1739236955105,0.00015306,98001.0,98000.0,0.23835289]
[1739236956319,0.00015306,98001.0,98000.0,0.24929152]
[1739236957418,0.00015306,98001.0,98000.0,0.21698953]
[1739236959026,0.00015306,98001.0,98000.0,0.24858953]
[1739236961918,6e-08,98001.0,98000.0,0.46858953]
[1739236962123,6e-08,98001.0,98000.0,0.48093535]
[1739236965324,6e-08,98001.0,98000.0,0.70303535]
[1739236965526,6e-08,98001.0,98000.0,0.72266947]
[1739236969530,6e-08,98001.0,98000.0,0.71173084]
[1739236970928,6e-08,98001.0,98000.0,0.71164704]
[1739236971326,6e-08,98001.0,98000.0,0.48954973]
[1739236972630,6e-08,98001.0,98000.0,0.46991946]
[1739236976534,6e-08,98001.0,98000.0,1.01139833]
[1739236977233,6e-08,98001.0,98000.0,1.0115807]
[1739236977637,0.18342807,98029.0,98028.0,0.2039926]
[1739236978026,0.3608,98040.0,98039.0,0.2039697]
[1739236979336,0.3608,98040.0,98039.0,0.2049697]
[1739236991047,0.0308,98044.0,98043.0,0.2039614]
[1739236992139,0.00015306,98049.0,98048.0,0.2039511]
[1739236994745,0.00015306,98049.0,98048.0,0.2049511]
[1739236995647,0.00015306,98049.0,98048.0,0.21554555]
[1739236997763,0.00015306,98049.0,98048.0,0.22776105]
[1739236997963,0.0319,98057.0,98056.0,0.2039344]
[1739236999164,0.0319,98057.0,98056.0,0.2049344]
[1739236999364,0.0319,98057.0,98056.0,0.2059344]
[1739237006371,0.0319,98057.0,98056.0,0.21828635]
[1739237006960,0.0319,98057.0,98056.0,0.21844754]
[1739237008159,0.3608,98064.0,98063.0,0.2039199]
[1739237008366,0.3608,98064.0,98063.0,0.21643304]
[1739237008960,0.3608,98064.0,98063.0,0.2164315]
[1739237009371,0.3608,98064.0,98063.0,0.2174315]
[1739237010572,0.3608,98064.0,98063.0,0.21746509]
[1739237011262,0.3608,98064.0,98063.0,0.2174403]
[1739237011466,0.3608,98064.0,98063.0,0.2059199]
[1739237014274,0.41039045,98064.0,98063.0,0.2059199]
[1739237017173,0.50387144,98064.0,98063.0,0.2059199]
[1739237017969,0.50387144,98064.0,98063.0,0.002]
[1739237018178,0.50387144,98064.0,98057.0,0.2039313]
[1739237018179,0.2039318,98058.0,98057.0,0.2039313]
[1739237019981,0.2039318,98058.0,98057.0,0.2049313]
[1739237020169,0.07756,98059.0,98058.0,0.2039303]
[1739237021376,0.07756,98059.0,98058.0,0.2049303]
[1739237021779,0.07756,98059.0,98058.0,0.21720545]
[1739237022567,0.07756,98059.0,98058.0,0.21820545]
[1739237023776,0.07756,98059.0,98058.0,0.21817758]
[1739237024571,0.3608,98063.0,98062.0,0.203922]
[1739237024881,0.3608,98063.0,98062.0,0.21616891]
[1739237025880,0.3608,98063.0,98062.0,0.203922]
[1739237026070,0.3608,98063.0,98062.0,0.204922]
[1739237026267,0.00015298,98066.0,98062.0,0.001]
[1739237026486,0.00015298,98066.0,98065.0,0.2039157]
[1739237028280,0.00015298,98066.0,98065.0,0.2049157]
[1739237028479,0.00015298,98066.0,98065.0,0.2059157]
[1739237032781,0.00015298,98066.0,98065.0,0.21816605]
[1739237034278,0.00015298,98066.0,98065.0,0.21811558]
[1739237038388,0.00015298,98066.0,98065.0,0.2180157]
[1739237038889,0.00015298,98066.0,98065.0,0.21797463]
[1739237043091,8e-08,98066.0,98065.0,0.57877463]
[1739237044192,8e-08,98066.0,98065.0,0.58877463]
[1739237044401,8e-08,98066.0,98065.0,0.58777463]
[1739237044895,8e-08,98066.0,98065.0,0.60730666]
[1739237045997,8e-08,98066.0,98065.0,0.5757157]
[1739237046193,8e-08,98066.0,98065.0,0.60715687]
[1739237047197,8e-08,98066.0,98065.0,0.59715687]
[1739237047700,0.2038596,98093.0,98092.0,0.2038597]
[1739237048593,0.5646596,98093.0,98092.0,0.2038597]
[1739237048794,0.57514121,98093.0,98092.0,0.2038597]
[1739237049294,0.57514121,98093.0,98092.0,0.2258597]
[1739237049892,0.62471727,98093.0,98092.0,0.2258597]
[1739237051796,0.42085767,98093.0,98092.0,0.2258597]
[1739237054896,0.42085767,98093.0,98092.0,0.23863477]
[1739237056003,0.37128161,98093.0,98092.0,0.23863477]
[1739237056209,0.3608,98093.0,98092.0,0.23863477]
[1739237056508,0.3608,98093.0,98092.0,0.22482587]
[1739237056699,0.43812,98093.0,98092.0,0.02096617]
[1739237057999,0.43812,98093.0,98092.0,0.002]
[1739237058504,0.43812,98093.0,98092.0,0.01474737]
[1739237059299,0.43812,98093.0,98092.0,0.01473148]
[1739237060004,0.43812,98093.0,98092.0,0.002]
[1739237060201,0.43812,98093.0,98092.0,0.2058597]
[1739237060409,0.43812,98093.0,98092.0,0.21837307]
[1739237061898,0.3608,98093.0,98092.0,0.21837307]
[1739237062102,0.3608,98093.0,98092.0,0.21737307]
[1739237063010,0.3608,98093.0,98092.0,0.2048597]
[1739237065404,0.3608,98093.0,98092.0,0.21760094]
[1739237066005,0.3608,98093.0,98092.0,0.2048597]
[1739237066213,0.3608,98093.0,98092.0,0.21739881]
[1739237066807,0.3608,98093.0,98092.0,0.2174005]
[1739237074105,0.3608,98093.0,98092.0,0.2048597]
[1739237078218,0.1,98100.0,98092.0,0.2048597]
[1739237078418,0.3608,98097.0,98096.0,0.2038513]
[1739237080522,0.1,98100.0,98090.0,0.05502954]
[1739237080823,0.1,98100.0,98099.0,0.2038451]
[1739237083319,0.14956888,98100.0,98099.0,0.2048451]
[1739237089019,0.14956888,98100.0,98099.0,0.21673611]
[1739237090032,0.14956888,98100.0,98099.0,0.22739434]
[1739237091120,0.14956888,98100.0,98099.0,0.21673611]
[1739237091721,0.1,98100.0,98099.0,0.21673611]
[1739237092724,0.1,98100.0,98099.0,0.2048451]
[1739237093231,0.1,98100.0,98099.0,0.21541176]
[1739237093420,0.1,98100.0,98099.0,0.2048451]
[1739237096332,0.1,98100.0,98099.0,0.3877128]
[1739237100236,0.00010133,98102.0,98101.0,0.2038409]
[1739237101534,0.00010133,98102.0,98101.0,0.2048409]
[1739237103333,0.2179,98153.0,98101.0,0.2048409]
[1739237103334,0.00056001,98134.0,98101.0,0.2286]
[1739237103535,0.33951071,98137.0,98136.0,0.2037682]
[1739237104235,0.70031071,98137.0,98136.0,0.2037682]
[1739237106238,0.70031071,98137.0,98127.0,0.00015289]
[1739237106436,0.95910825,98137.0,98127.0,0.00015289]
[1739237106625,0.95910825,98137.0,98134.0,0.2037722]
[1739237106830,0.90407871,98137.0,98134.0,0.2037722]
[1739237107936,0.67862026,98137.0,98134.0,0.2037722]
[1739237108829,0.47485226,98137.0,98135.0,0.2037695]
[1739237110041,0.44245226,98137.0,98135.0,0.2037695]
[1739237110834,0.44245226,98137.0,98135.0,0.21427508]
[1739237111234,0.3929,98137.0,98135.0,0.21427508]
[1739237111434,0.3922,98147.0,98135.0,0.21427508]
[1739237111435,0.3608,98147.0,98136.0,0.3608]
[1739237111637,0.3608,98147.0,98146.0,0.2037475]
[1739237114246,0.3608,98147.0,98146.0,0.2047475]
[1739237116046,0.01048967,98158.0,98154.0,0.2037292]
[1739237116247,0.3608,98159.0,98154.0,0.2037292]
[1739237116438,0.3608,98159.0,98146.0,0.001]
[1739237116439,0.3608,98159.0,98149.0,0.05502954]
[1739237116634,0.3608,98159.0,98149.0,0.11005908]
[1739237116840,0.3608,98170.0,98168.0,0.2037015]
[1739237117540,0.37130117,98170.0,98168.0,0.2037015]
[1739237118842,0.37130117,98170.0,98168.0,0.2047015]
[1739237119041,0.37130117,98170.0,98168.0,0.001]
[1739237119042,0.5644997,98169.0,98168.0,0.001]
[1739237130738,0.5970997,98169.0,98168.0,0.001]
[1739237132353,0.2037309,98154.0,98153.0,0.2037322]
[1739237132652,0.5645309,98154.0,98153.0,0.2037322]
[1739237132852,0.2037425,98149.0,98147.0,0.20389769]
[1739237133240,0.2037425,98149.0,98147.0,0.00015289]
[1739237133948,0.21433718,98149.0,98147.0,0.00015289]
[1739237134549,0.21433718,98149.0,98147.0,0.00815289]
[1739237134749,0.07692,98148.0,98147.0,0.00815289]
[1739237136558,0.07692,98148.0,98147.0,0.00315289]
[1739237136758,0.07692,98148.0,98147.0,0.00815289]
[1739237141860,0.79852,98148.0,98147.0,0.00815289]
[1739237142865,0.8480708,98148.0,98147.0,0.00815289]
[1739237143948,0.7711508,98148.0,98147.0,0.00815289]
[1739237147663,0.0495508,98148.0,98147.0,0.00815289]
[1739237147861,0.0495508,98148.0,98147.0,0.03845289]
[1739237148863,0.3608,98150.0,98148.0,0.2037433]
[1739237150063,0.3608,98150.0,98148.0,0.2107433]
[1739237150662,0.3608,98152.0,98148.0,0.007]
[1739237151060,0.3608,98152.0,98151.0,0.2037371]
[1739237152763,0.3608,98152.0,98151.0,0.2057371]
[1739237153261,0.3608,98152.0,98151.0,0.2077371]
[1739237154765,0.2037277,98156.0,98151.0,0.004]
[1739237154968,0.2037277,98156.0,98155.0,0.2037288]
[1739237155472,0.5645277,98156.0,98155.0,0.2037288]
[1739237156267,0.2037277,98156.0,98155.0,0.2037288]
[1739237156469,0.5645277,98156.0,98155.0,0.2047288]
[1739237156972,0.74680455,98156.0,98155.0,0.2047288]
[1739237157890,0.74680455,98156.0,98155.0,0.001]
[1739237161577,0.61407279,98156.0,98155.0,0.001]
[1739237161978,0.41034509,98156.0,98155.0,0.001]
[1739237164678,0.3608,98156.0,98155.0,0.001]
[1739237166579,0.4235,98156.0,98155.0,0.001]
[1739237166975,0.4235,98156.0,98147.0,0.00015289]
[1739237167182,0.5645433,98148.0,98147.0,0.00015289]
[1739237168779,0.5645433,98148.0,98147.0,0.00315289]
[1739237169677,0.5645433,98148.0,98147.0,0.00515289]
[1739237169868,0.5645433,98148.0,98147.0,0.00815289]
[1739237170270,0.6413433,98148.0,98147.0,0.00815289]
[1739237171477,0.4376,98148.0,98147.0,0.00815289]
[1739237172185,0.3608,98148.0,98147.0,0.00815289]
[1739237172901,0.5089973,98148.0,98147.0,0.00815289]
[1739237174284,0.2037574,98142.0,98140.0,0.2037597]
[1739237174686,0.3608,98144.0,98140.0,0.2037597]
[1739237174885,0.3608,98144.0,98127.0,0.2037853]
[1739237175079,0.3608,98131.0,98130.0,0.2037807]
[1739237176985,0.3608,98131.0,98130.0,0.022]
[1739237178286,0.37132012,98131.0,98130.0,0.022]
[1739237182484,0.2037973,98122.0,98121.0,0.00015281]
[1739237182685,0.5645973,98122.0,98121.0,0.00015281]
[1739237183085,1.8608,98122.0,98119.0,0.1828677]
[1739237183286,0.2038015,98120.0,98119.0,0.1828677]
[1739237183489,0.0321,98121.0,98115.0,0.1828677]
[1739237183698,0.2038049,98119.0,98115.0,0.1828677]
[1739237183900,0.2805249,98119.0,98115.0,0.1828677]
[1739237184094,0.2038059,98118.0,98115.0,0.1828677]
[1739237185292,0.2038092,98117.0,98115.0,0.1828677]
[1739237186187,0.2038092,98117.0,98115.0,0.1958677]
[1739237186390,0.2038092,98117.0,98115.0,0.2018677]
[1739237186895,0.2048092,98117.0,98115.0,0.019]
[1739237188491,0.2058092,98117.0,98115.0,0.019]
[1739237189096,0.2058092,98117.0,98115.0,0.2228106]
[1739237189593,0.07872,98117.0,98115.0,0.2228106]
[1739237189985,0.07872,98117.0,98115.0,0.2038106]
[1739237190189,0.07872,98117.0,98088.0,0.07651644]
[1739237190190,0.0355,98116.0,98088.0,0.07651644]
[1739237190388,0.0355,98116.0,98080.0,0.30421267]
[1739237190389,0.2038764,98084.0,98080.0,0.30421267]
[1739237190597,0.7216,98089.0,98080.0,0.30421267]
[1739237190598,0.3608,98081.0,98080.0,0.30421267]
[1739237190905,0.5646825,98081.0,98080.0,0.30421267]
[1739237191688,0.57497111,98081.0,98080.0,0.30421267]
[1739237191891,0.57497111,98081.0,98080.0,0.30721267]
[1739237192402,0.57497111,98081.0,98080.0,0.30621267]
[1739237192995,0.57497111,98081.0,98080.0,0.002]
[1739237193299,0.57497111,98081.0,98080.0,0.003]
[1739237194791,0.2039012,98072.0,98071.0,0.00015289]
[1739237194994,0.5647012,98072.0,98071.0,0.00015289]
[1739237195994,0.5657012,98072.0,98071.0,0.00815289]
[1739237198700,0.5657012,98072.0,98042.0,0.3608]
[1739237198701,0.6618,98072.0,98020.0,0.1776]
[1739237198894,0.6618,98072.0,98014.0,0.3608]
[1739237198895,0.2039782,98035.0,98034.0,0.033]
[1739237201103,0.2039782,98035.0,98034.0,0.035]
[1739237201300,0.3608,98041.0,98034.0,0.035]
[1739237201493,0.3608,98041.0,98034.0,0.2409802]
[1739237201494,0.001,98035.0,98034.0,0.2409802]
[1739237202503,0.00015297,98044.0,98043.0,0.2039615]
[1739237203805,0.2039628,98043.0,98041.0,0.2039651]
[1739237204102,0.2039628,98043.0,98042.0,0.0313]
[1739237205194,0.2049628,98043.0,98042.0,0.0313]
[1739237205391,0.001,98043.0,98042.0,0.0313]
[1739237205594,0.001,98043.0,98042.0,0.0643]
[1739237205995,0.004,98043.0,98042.0,0.2682636]
[1739237207200,0.004,98043.0,98042.0,0.2804958]
[1739237208604,0.004,98043.0,98042.0,0.0455322]
[1739237208808,0.004,98043.0,98042.0,0.04563765]
[1739237209110,0.004,98043.0,98042.0,0.04564019]
[1739237211005,0.004,98043.0,98042.0,0.01434019]
[1739237211199,0.004,98043.0,98042.0,0.002]
[1739237211394,0.004,98043.0,98042.0,0.01452438]
[1739237212305,0.004,98043.0,98042.0,0.01452863]
[1739237216608,0.004,98043.0,98042.0,0.03490679]
[1739237217611,0.08064,98043.0,98042.0,0.0606585]
[1739237218511,0.08064,98043.0,98042.0,0.03490679]
[1739237220209,0.004,98043.0,98042.0,0.03490679]
[1739237220615,0.004,98043.0,98042.0,0.01459255]
[1739237221418,0.004,98043.0,98042.0,0.03407899]
[1739237221810,0.2079615,98043.0,98042.0,0.01459255]
[1739237223411,0.2408615,98043.0,98042.0,0.01459255]
[1739237223610,0.2408615,98043.0,98042.0,0.002]
[1739237224015,1.7408615,98043.0,98042.0,0.002]
[1739237225720,0.2039845,98032.0,98026.0,0.50820937]
[1739237225915,0.3608,98028.0,98027.0,0.01184738]
[1739237226713,0.3608,98028.0,98026.0,0.50936937]
[1739237226914,0.3608,98028.0,98026.0,0.50820937]
[1739237227118,0.3618,98028.0,98027.0,0.002]
[1739237227813,0.3618,98028.0,98026.0,0.2059967]
[1739237228019,0.3628,98028.0,98026.0,0.2079967]
[1739237228414,0.3628,98028.0,98027.0,0.002]
[1739237228613,0.3618,98028.0,98027.0,0.0137723]
[1739237228814,0.3628,98028.0,98027.0,0.0157723]
[1739237229508,0.3628,98028.0,98027.0,0.0157715]
[1739237230321,0.3628,98028.0,98027.0,0.01386676]
[1739237230322,0.002,98028.0,98027.0,0.01386676]
[1739237230521,0.001,98028.0,98027.0,0.01186676]
[1739237230713,0.002,98028.0,98027.0,0.01186676]
[1739237230911,0.002,98028.0,98027.0,0.01286676]
[1739237231418,0.002,98028.0,98027.0,0.01486676]
[1739237233724,0.002,98028.0,98027.0,0.03469877]